bitfinex/quotes_BTCUSD_20241021
["timestamp","ask_amount","ask_price","bid_price","bid_amount"]
[1729523062379,0.22366528,67183.0,67182.0,0.33569305]
[1729523062638,0.62131328,67194.0,67186.0,0.148838]
[1729523062855,0.22366528,67204.0,67196.0,0.148818]
[1729523063074,0.22366528,67204.0,67196.0,0.32077715]
[1729523063300,0.148788,67210.0,67196.0,0.32077715]
[1729523063548,0.121025,67197.0,67195.0,0.29764]
[1729523063808,0.005,67113.0,67096.0,0.0771]
[1729523064036,0.005,67136.0,67097.0,1.39753]
[1729523064247,0.005,67139.0,67118.0,0.005]
[1729523064468,0.005,67139.0,67120.0,0.89290365]
[1729523064720,0.005,67141.0,67127.0,0.89290365]
[1729523064934,0.005,67139.0,67128.0,0.89290365]
[1729523065456,0.005,67139.0,67135.0,0.89290365]
[1729523065877,0.005,67140.0,67136.0,0.89290365]
[1729523066097,0.005,67139.0,67136.0,0.89290365]
[1729523066765,0.013,67139.0,67136.0,0.89290365]
[1729523067252,0.005,67139.0,67136.0,0.89290365]
[1729523067476,0.013,67139.0,67136.0,0.89390365]
[1729523068156,0.005,67139.0,67136.0,0.89290365]
[1729523068584,0.005,67140.0,67136.0,0.89290365]
[1729523068797,0.005,67139.0,67137.0,0.22341543]
[1729523069003,0.005,67140.0,67137.0,0.22341543]
[1729523069209,0.005,67139.0,67137.0,0.22341543]
[1729523069622,0.01,67139.0,67137.0,0.22341543]
[1729523069845,0.005,67139.0,67137.0,0.22341543]
[1729523070789,0.002,67139.0,67137.0,0.22341543]
[1729523071012,0.007,67139.0,67137.0,0.22341543]
[1729523072331,0.155945,67139.0,67137.0,0.22341543]
[1729523072546,0.002,67139.0,67137.0,0.22341543]
[1729523074103,0.153934,67144.0,67137.0,0.22441543]
[1729523074335,0.163946,67138.0,67137.0,0.002]
[1729523074544,0.163946,67138.0,67121.0,0.22341543]
[1729523074545,0.163982,67122.0,67121.0,0.22341543]
[1729523074791,0.41294115,67122.0,67121.0,0.22341543]
[1729523075730,0.41294115,67122.0,67106.0,0.22341543]
[1729523075731,0.264015,67107.0,67106.0,0.22341543]
[1729523076169,0.31473391,67107.0,67106.0,0.22341543]
[1729523076388,0.32951881,67107.0,67106.0,0.22341543]
[1729523076633,0.32951881,67107.0,67092.0,0.22341543]
[1729523076634,0.264031,67100.0,67092.0,0.22341543]
[1729523077063,0.31474991,67100.0,67092.0,0.22341543]
[1729523077493,0.46370906,67100.0,67092.0,0.22341543]
[1729523078192,0.40799015,67100.0,67092.0,0.22341543]
[1729523078407,0.267031,67100.0,67099.0,0.22441543]
[1729523078617,0.167031,67100.0,67099.0,0.22441543]
[1729523079033,0.167031,67100.0,67099.0,0.22341543]
[1729523080113,0.022,67100.0,67099.0,0.22441543]
[1729523080322,0.022,67100.0,67099.0,0.22341543]
[1729523080323,0.154031,67100.0,67099.0,0.22341543]
[1729523080551,0.156031,67100.0,67099.0,0.22441543]
[1729523080772,0.168031,67100.0,67099.0,0.22541543]
[1729523080996,0.154031,67100.0,67099.0,0.22341543]
[1729523081225,0.166031,67100.0,67099.0,0.22441543]
[1729523081455,0.16778965,67100.0,67099.0,0.22541543]
[1729523081933,0.16578965,67100.0,67099.0,0.22441543]
[1729523082369,0.16778965,67100.0,67099.0,0.22441543]
[1729523083016,0.17278965,67100.0,67099.0,0.22441543]
[1729523083270,0.15578965,67100.0,67099.0,0.22341543]
[1729523083707,0.15978965,67100.0,67099.0,0.22341543]
[1729523085693,0.01075865,67100.0,67099.0,0.22341543]
[1729523085893,0.15978965,67100.0,67099.0,0.22341543]
[1729523086129,0.01075865,67100.0,67099.0,0.22341543]
[1729523086372,0.15978965,67100.0,67099.0,0.22341543]
[1729523086573,0.01075865,67100.0,67099.0,0.22341543]
[1729523086779,0.15978965,67100.0,67099.0,0.22424143]
[1729523087829,0.16978965,67100.0,67099.0,0.000826]
[1729523088046,0.4187488,67100.0,67099.0,0.000826]
[1729523088691,0.4237488,67100.0,67099.0,0.000826]
[1729523089368,0.4187488,67100.0,67099.0,0.000826]
[1729523089710,0.46299252,67100.0,67099.0,0.000826]
[1729523090029,0.4237488,67100.0,67099.0,0.000826]
[1729523093006,0.4187488,67100.0,67099.0,0.000826]
[1729523093262,0.01075865,67100.0,67099.0,0.000826]
[1729523093500,0.15978965,67100.0,67099.0,0.000826]
[1729523093737,0.01075865,67100.0,67099.0,0.000826]
[1729523094179,0.00875865,67100.0,67099.0,0.000826]
[1729523094395,0.00875865,67100.0,67099.0,0.002826]
[1729523094396,0.15378965,67100.0,67099.0,0.002826]
[1729523094615,0.00475865,67102.0,67099.0,0.002826]
[1729523094861,0.01,67105.0,67100.0,0.22341543]
[1729523094862,0.15378765,67101.0,67100.0,0.22341543]
[1729523095093,0.00475865,67101.0,67100.0,0.22341543]
[1729523095318,0.15378765,67101.0,67100.0,0.22341543]
[1729523096014,0.00475865,67101.0,67100.0,0.22341543]
[1729523096563,0.15378765,67101.0,67100.0,0.22341543]
[1729523096784,0.00575865,67101.0,67100.0,0.22341543]
[1729523097006,0.15478765,67101.0,67100.0,0.22341543]
[1729523097220,0.15478765,67101.0,67100.0,0.17824112]
[1729523097447,0.15378965,67100.0,67099.0,0.000826]
[1729523098585,0.00475865,67100.0,67099.0,0.000826]
[1729523099283,0.00475865,67102.0,67099.0,0.000826]
[1729523099531,0.003,67100.0,67099.0,0.000826]
[1729523099753,0.00475865,67105.0,67099.0,0.151859]
[1729523100203,0.00475865,67105.0,67099.0,0.000826]
[1729523100662,0.00475865,67105.0,67101.0,0.22341543]
[1729523100892,0.149026,67102.0,67101.0,0.22341543]
[1729523101122,0.15377865,67105.0,67101.0,0.22341543]
[1729523101384,0.00775865,67105.0,67101.0,0.22341543]
[1729523101618,0.149025,67103.0,67101.0,0.22341543]
[1729523101849,0.149024,67103.0,67101.0,0.22341543]
[1729523102089,0.003,67105.0,67102.0,0.17138329]
[1729523102300,0.003,67105.0,67104.0,0.172022]
[1729523102521,0.003,67105.0,67104.0,0.32098115]
[1729523102780,0.297898,67138.0,67104.0,0.32098115]
[1729523102781,0.00975865,67131.0,67109.0,0.00024135]
[1729523103003,0.30266065,67137.0,67128.0,0.148968]
[1729523103241,0.00461669,67133.0,67125.0,0.0762]
[1729523103451,0.148964,67131.0,67127.0,0.22341543]
[1729523103676,0.148964,67131.0,67125.0,0.0762]
[1729523103677,0.00461669,67133.0,67125.0,0.0762]
[1729523103936,0.00461669,67133.0,67128.0,0.22341543]
[1729523104398,0.148963,67131.0,67128.0,0.22341543]
[1729523104623,0.148966,67130.0,67128.0,0.22341543]
[1729523104840,0.30292,67132.0,67118.0,0.023]
[1729523105072,0.001652,67139.0,67129.0,0.22341543]
[1729523105073,0.00961669,67138.0,67129.0,0.22341543]
[1729523105305,0.00961669,67138.0,67127.0,0.005]
[1729523105306,0.00461669,67138.0,67127.0,0.005]
[1729523105555,0.00461669,67138.0,67128.0,0.22341543]
[1729523105556,0.005,67136.0,67128.0,0.22341543]
[1729523105776,0.148966,67129.0,67128.0,0.22341543]
[1729523106021,0.001652,67139.0,67118.0,0.36248937]
[1729523106022,0.148978,67124.0,67118.0,0.06450937]
[1729523106250,0.005,67122.0,67117.0,0.22341543]
[1729523106490,0.148991,67118.0,67117.0,0.22341543]
[1729523107403,0.00461669,67121.0,67110.0,0.22341543]
[1729523107628,0.148991,67118.0,67117.0,0.22341543]
[1729523107879,0.148991,67118.0,67110.0,0.22341543]
[1729523107880,0.297973,67120.0,67110.0,0.22341543]
[1729523108121,0.00461669,67102.0,67099.0,0.000826]
[1729523108567,0.15364269,67102.0,67099.0,0.000826]
[1729523108784,0.00461669,67102.0,67099.0,0.000826]
[1729523109487,0.00461669,67107.0,67102.0,0.298053]
[1729523109720,0.00461669,67107.0,67099.0,0.000826]
[1729523109721,0.00461669,67107.0,67104.0,0.14902]
[1729523109945,0.00461669,67107.0,67099.0,0.000826]
[1729523109946,0.00461669,67107.0,67099.0,0.29889]
[1729523110158,0.00461669,67109.0,67104.0,0.149021]
[1729523110394,0.01,67110.0,67103.0,0.149022]
[1729523110395,0.00961669,67107.0,67103.0,0.149022]
[1729523110639,0.00461669,67107.0,67101.0,0.22841543]
[1729523110834,0.00461669,67107.0,67102.0,0.149025]
[1729523111081,0.14902,67105.0,67104.0,0.011]
[1729523111525,0.30364769,67107.0,67101.0,0.23341543]
[1729523111775,0.149024,67103.0,67101.0,0.23341543]
[1729523111997,0.298041,67105.0,67101.0,0.23341543]
[1729523112229,0.298049,67103.0,67101.0,0.01]
[1729523112461,0.005,67105.0,67102.0,0.22341543]
[1729523112462,0.149022,67104.0,67102.0,0.22341543]
[1729523112675,0.00961669,67106.0,67102.0,0.22341543]
[1729523112676,0.00461669,67106.0,67103.0,0.149024]
[1729523112949,0.00461669,67106.0,67102.0,0.22341543]
[1729523113416,0.15363469,67106.0,67102.0,0.22341543]
[1729523113644,0.001,67103.0,67102.0,0.22341543]
[1729523113862,0.149024,67103.0,67102.0,0.22341543]
[1729523114094,0.00461669,67108.0,67099.0,0.000826]
[1729523114095,0.149031,67100.0,67099.0,0.000826]
[1729523114310,0.119231,67100.0,67099.0,0.000826]
[1729523115691,0.124231,67100.0,67099.0,0.000826]
[1729523115908,0.119231,67100.0,67099.0,0.000826]
[1729523116612,0.125231,67100.0,67099.0,0.014826]
[1729523117107,0.124231,67100.0,67099.0,0.014826]
[1729523117340,0.13384769,67100.0,67099.0,0.000826]
[1729523117570,0.13384769,67100.0,67099.0,0.002826]
[1729523117790,0.13384769,67100.0,67099.0,0.000826]
[1729523118217,0.13384769,67100.0,67099.0,0.003826]
[1729523118675,0.12384769,67100.0,67099.0,0.003826]
[1729523119110,0.119231,67100.0,67099.0,0.003826]
[1729523120076,0.13484769,67100.0,67099.0,0.003826]
[1729523120326,0.26368969,67081.0,67080.0,0.22341543]
[1729523121503,0.26368969,67081.0,67080.0,0.22424143]
[1729523121731,0.26368969,67081.0,67080.0,0.000826]
[1729523122669,0.41264884,67081.0,67080.0,0.000826]
[1729523122915,0.259073,67081.0,67080.0,0.000826]
[1729523123160,0.15368969,67081.0,67080.0,0.000826]
[1729523123622,0.15868969,67081.0,67080.0,0.000826]
[1729523123855,0.15368969,67081.0,67080.0,0.000826]
[1729523124340,0.15868969,67081.0,67080.0,0.000826]
[1729523124558,0.15368969,67081.0,67080.0,0.000826]
[1729523124801,0.15368969,67081.0,67080.0,0.002826]
[1729523125037,0.00461669,67086.0,67080.0,0.002826]
[1729523125275,0.00461669,67089.0,67081.0,0.22341543]
[1729523125521,0.002,67081.0,67080.0,0.149901]
[1729523125750,0.002,67081.0,67080.0,0.000826]
[1729523125990,0.151073,67081.0,67080.0,0.000826]
[1729523126236,0.002,67081.0,67080.0,0.000826]
[1729523126690,0.00461669,67086.0,67080.0,0.002826]
[1729523126926,0.149073,67081.0,67080.0,0.002826]
[1729523127170,0.149073,67081.0,67080.0,0.000826]
[1729523127652,0.16368969,67081.0,67080.0,0.001826]
[1729523127874,0.16368969,67081.0,67080.0,0.000826]
[1729523128399,0.41364884,67081.0,67080.0,0.000826]
[1729523128649,0.41264884,67081.0,67080.0,0.000826]
[1729523129780,0.41564884,67081.0,67080.0,0.000826]
[1729523130237,0.41264884,67081.0,67080.0,0.000826]
[1729523130453,0.41364884,67081.0,67080.0,0.000826]
[1729523130890,0.26468969,67081.0,67080.0,0.000826]
[1729523131111,0.27468969,67081.0,67080.0,0.001826]
[1729523131332,0.26368969,67081.0,67080.0,0.000826]
[1729523131793,0.01461669,67083.0,67080.0,0.000826]
[1729523132014,0.16615793,67081.0,67080.0,0.000826]
[1729523132296,0.150073,67081.0,67080.0,0.000826]
[1729523132530,0.01609643,67081.0,67080.0,0.000826]
[1729523132959,0.16516943,67081.0,67080.0,0.000826]
[1729523133881,0.01509643,67081.0,67080.0,0.000826]
[1729523134073,0.17316943,67081.0,67080.0,0.005826]
[1729523134322,0.17316943,67081.0,67080.0,0.004826]
[1729523134323,0.149073,67081.0,67080.0,0.004826]
[1729523134559,0.149073,67081.0,67080.0,0.000826]
[1729523134560,0.16416983,67081.0,67080.0,0.000826]
[1729523134774,0.01509683,67081.0,67080.0,0.004826]
[1729523135027,0.01509683,67081.0,67080.0,0.000826]
[1729523135269,0.01509683,67081.0,67080.0,0.149901]
[1729523135509,0.01,67082.0,67080.0,0.001826]
[1729523135722,0.01,67082.0,67081.0,0.149073]
[1729523136417,0.01,67082.0,67081.0,0.2321541]
[1729523136647,0.01,67082.0,67081.0,0.5064871]
[1729523137310,0.01,67082.0,67081.0,0.5124871]
[1729523137541,0.30269569,67097.0,67091.0,0.14905]
[1729523137786,0.29808,67096.0,67091.0,0.14905]
[1729523138016,0.149045,67094.0,67091.0,0.14905]
[1729523138295,0.001652,67099.0,67094.0,0.298089]
[1729523138523,0.001652,67099.0,67098.0,0.172035]
[1729523138765,0.001652,67099.0,67098.0,0.32099415]
[1729523139492,0.001652,67099.0,67098.0,0.40267746]
[1729523139739,0.001652,67099.0,67098.0,0.55163661]
[1729523139958,0.005,67136.0,67098.0,0.55163661]
[1729523139959,0.446928,67125.0,67104.0,0.15640531]
[1729523140178,0.30256669,67126.0,67104.0,0.32836446]
[1729523140399,0.00461669,67126.0,67104.0,0.32836446]
[1729523140603,0.148982,67123.0,67110.0,0.023]
[1729523140837,0.00461669,67124.0,67108.0,0.00238331]
[1729523140838,0.01461669,67128.0,67114.0,0.023]
[1729523141063,0.299543,67139.0,67114.0,0.023]
[1729523141064,0.00461669,67134.0,67123.0,0.0809]
[1729523141345,0.001652,67139.0,67137.0,0.148949]
[1729523142261,0.148952,67136.0,67134.0,0.023]
[1729523142475,0.001652,67139.0,67135.0,0.22341543]
[1729523142687,0.005,67134.0,67114.0,0.00038331]
[1729523142916,0.153955,67134.0,67133.0,0.22341543]
[1729523143167,0.005,67134.0,67125.0,0.22341543]
[1729523143382,0.01550619,67134.0,67132.0,0.22341543]
[1729523143599,0.00461669,67136.0,67127.0,0.297942]
[1729523143839,0.01550619,67133.0,67128.0,0.17195915]
[1729523144084,0.001652,67139.0,67132.0,0.22341543]
[1729523144322,0.001652,67139.0,67137.0,0.151949]
[1729523144759,0.001652,67139.0,67137.0,0.32090815]
[1729523145219,0.001652,67139.0,67137.0,0.40419146]
[1729523145453,0.001652,67139.0,67138.0,0.17932931]
[1729523145666,0.001652,67139.0,67138.0,0.47524761]
[1729523145878,0.001652,67139.0,67138.0,0.32628846]
[1729523147418,0.001652,67139.0,67138.0,0.34028846]
[1729523147771,0.001652,67139.0,67138.0,0.33490515]
[1729523147773,0.150596,67139.0,67138.0,0.014]
[1729523147985,0.297893,67138.0,67131.0,0.00038331]
[1729523148185,0.001652,67139.0,67125.0,0.30731543]
[1729523148186,0.001652,67139.0,67125.0,0.30231543]
[1729523148401,0.005,67134.0,67125.0,0.30231543]
[1729523148627,0.148958,67133.0,67132.0,0.22341543]
[1729523148815,0.005,67134.0,67125.0,0.22341543]
[1729523149053,0.148973,67126.0,67125.0,0.22341543]
[1729523149486,0.148973,67126.0,67125.0,0.22641543]
[1729523149686,0.148973,67126.0,67125.0,0.003]
[1729523149892,0.1644825,67126.0,67125.0,0.003]
[1729523150129,0.0155095,67126.0,67125.0,0.003]
[1729523150337,0.0155095,67126.0,67125.0,0.33106878]
[1729523150472,0.0155095,67126.0,67125.0,0.30093415]
[1729523150675,0.15356469,67138.0,67125.0,0.17495915]
[1729523150883,0.0155095,67137.0,67126.0,0.14895915]
[1729523151085,0.148962,67132.0,67128.0,0.148967]
[1729523151293,0.005,67136.0,67125.0,0.001]
[1729523151459,0.148968,67129.0,67127.0,0.22341543]
[1729523151677,0.16448549,67128.0,67127.0,0.22341543]
[1729523152088,0.148973,67126.0,67125.0,0.001]
[1729523152303,0.01552131,67126.0,67113.0,0.00038331]
[1729523152519,0.148973,67126.0,67125.0,0.22341543]
[1729523152746,0.297942,67127.0,67117.0,0.00038331]
[1729523152983,0.148976,67125.0,67122.0,0.22341543]
[1729523153178,0.297952,67125.0,67122.0,0.22341543]
[1729523153403,0.148975,67125.0,67122.0,0.22341543]
[1729523153621,0.148982,67122.0,67118.0,0.29794815]
[1729523153829,0.148982,67122.0,67117.0,0.00038331]
[1729523153830,0.01552105,67124.0,67115.0,0.30231543]
[1729523154029,0.005,67125.0,67116.0,0.297987]
[1729523154270,0.148992,67118.0,67115.0,0.22341543]
[1729523154493,0.15398,67123.0,67122.0,0.003]
[1729523154945,0.16949502,67123.0,67122.0,0.003]
[1729523155609,0.02551502,67123.0,67115.0,0.22341543]
[1729523155817,0.02051502,67123.0,67122.0,0.22341543]
[1729523156046,0.005,67123.0,67122.0,0.148982]
[1729523156460,0.02051502,67123.0,67122.0,0.148982]
[1729523156698,0.005,67123.0,67122.0,0.148982]
[1729523156903,0.007,67123.0,67122.0,0.148982]
[1729523157319,0.02090803,67123.0,67122.0,0.39543535]
[1729523157550,0.02290803,67123.0,67122.0,0.39626035]
[1729523157776,0.005,67136.0,67134.0,0.148955]
[1729523157989,0.148955,67135.0,67130.0,0.148964]
[1729523158196,0.01390803,67135.0,67130.0,0.148964]
[1729523158462,0.01390803,67135.0,67132.0,0.22341543]
[1729523158794,0.001652,67139.0,67137.0,0.148948]
[1729523159015,0.001652,67139.0,67133.0,0.297916]
[1729523159215,0.001652,67139.0,67136.0,0.148949]
[1729523159431,0.001652,67139.0,67138.0,0.148946]
[1729523159639,0.001652,67139.0,67138.0,0.18413738]
[1729523160055,0.001652,67139.0,67138.0,0.32090515]
[1729523160569,0.001652,67139.0,67133.0,0.148958]
[1729523160800,0.001652,67139.0,67138.0,0.005]
[1729523161026,0.001652,67139.0,67138.0,0.32590515]
[1729523161682,0.001652,67139.0,67138.0,0.32990515]
[1729523161920,0.001652,67139.0,67138.0,0.004]
[1729523162159,0.150596,67139.0,67138.0,0.004]
[1729523162583,0.001652,67139.0,67138.0,0.004]
[1729523163268,0.001652,67139.0,67138.0,0.009]
[1729523163518,0.001652,67139.0,67138.0,0.157946]
[1729523163742,0.001652,67139.0,67138.0,0.009]
[1729523164211,0.01563188,67139.0,67138.0,0.009]
[1729523164453,0.150596,67139.0,67138.0,0.009]
[1729523164693,0.16457588,67139.0,67138.0,0.009]
[1729523165368,0.16457588,67139.0,67138.0,0.005]
[1729523165597,0.31352188,67139.0,67135.0,0.22341543]
[1729523165856,0.005,67136.0,67130.0,0.22341543]
[1729523166121,0.02924857,67139.0,67123.0,0.22341543]
[1729523166122,0.16359469,67124.0,67123.0,0.22341543]
[1729523166333,0.41755384,67124.0,67123.0,0.22341543]
[1729523166579,0.26859669,67123.0,67122.0,0.000825]
[1729523166819,0.41755584,67123.0,67122.0,0.000825]
[1729523167030,0.43151699,67123.0,67122.0,0.000825]
[1729523167943,0.42151699,67123.0,67122.0,0.000825]
[1729523168165,0.27755784,67123.0,67122.0,0.000825]
[1729523168387,0.01396115,67123.0,67122.0,0.000825]
[1729523168643,0.00461669,67130.0,67122.0,0.000825]
[1729523168822,0.00461669,67130.0,67125.0,0.148974]
[1729523168823,0.00961669,67129.0,67125.0,0.148974]
[1729523169038,0.14897,67128.0,67123.0,0.148979]
[1729523169272,0.297938,67128.0,67124.0,0.22341543]
[1729523169503,0.148974,67126.0,67124.0,0.22341543]
[1729523169741,0.00461669,67104.0,67099.0,0.22341543]
[1729523169978,0.26364769,67100.0,67099.0,0.22341543]
[1729523170425,0.26864769,67100.0,67099.0,0.22341543]
[1729523170878,0.26864769,67100.0,67092.0,0.22341543]
[1729523170879,0.16366269,67093.0,67092.0,0.22341543]
[1729523171086,0.31262184,67093.0,67092.0,0.22341543]
[1729523171528,0.16366269,67093.0,67092.0,0.22341543]
[1729523171980,0.16366269,67093.0,67085.0,0.22341543]
[1729523171981,0.005,67088.0,67085.0,0.22341543]
[1729523172191,0.149062,67086.0,67085.0,0.22341543]
[1729523172412,0.005,67088.0,67085.0,0.22341543]
[1729523172641,0.149073,67081.0,67076.0,0.000843]
[1729523172863,0.154073,67081.0,67079.0,0.22341543]
[1729523173580,0.00461669,67085.0,67076.0,0.000843]
[1729523173806,0.149066,67084.0,67076.0,0.000843]
[1729523174020,0.14907,67083.0,67077.0,0.023]
[1729523174239,0.149073,67081.0,67076.0,0.000843]
[1729523174481,0.16584405,67081.0,67076.0,0.000843]
[1729523174714,0.55994884,67081.0,67076.0,0.000843]
[1729523175796,0.55794884,67081.0,67076.0,0.000843]
[1729523176026,0.56794884,67081.0,67076.0,0.000843]
[1729523176236,0.58194884,67081.0,67076.0,0.000843]
[1729523176488,0.56794884,67081.0,67076.0,0.000843]
[1729523176704,0.58194884,67081.0,67076.0,0.000843]
[1729523177164,0.59494884,67081.0,67076.0,0.000843]
[1729523177404,0.58994884,67081.0,67076.0,0.000843]
[1729523177651,0.16869869,67077.0,67076.0,0.000843]
[1729523177865,0.41765784,67077.0,67076.0,0.000843]
[1729523178572,0.26871169,67071.0,67070.0,0.000843]
[1729523178789,0.55637084,67071.0,67070.0,0.22425843]
[1729523179016,0.55137084,67071.0,67070.0,0.22425843]
[1729523179244,0.54637084,67071.0,67070.0,0.000843]
[1729523179759,0.26872569,67065.0,67062.0,0.003]
[1729523179973,0.41768484,67065.0,67062.0,0.003]
[1729523180195,0.43117789,67065.0,67062.0,0.003]
[1729523180653,0.42617789,67065.0,67062.0,0.003]
[1729523181355,0.27721874,67065.0,67062.0,0.003]
[1729523181829,0.29121874,67065.0,67062.0,0.003]
[1729523182050,0.45017789,67065.0,67062.0,0.003]
[1729523182481,0.46417789,67065.0,67062.0,0.003]
[1729523182684,0.45017789,67065.0,67062.0,0.003]
[1729523182892,0.43617789,67065.0,67062.0,0.003]
[1729523183101,0.45017789,67065.0,67062.0,0.003]
[1729523183331,0.44717789,67065.0,67062.0,0.003]
[1729523183757,0.42617789,67065.0,67062.0,0.003]
[1729523183990,0.27721874,67065.0,67062.0,0.003]
[1729523184240,0.29121874,67065.0,67062.0,0.003]
[1729523184467,0.02749305,67065.0,67064.0,0.61473362]
[1729523184697,0.01349305,67065.0,67064.0,0.76384462]
[1729523184929,0.298155,67079.0,67067.0,0.023]
[1729523185172,0.00461669,67082.0,67069.0,0.023]
[1729523185419,0.005,67097.0,67064.0,0.31819036]
[1729523185420,0.005,67104.0,67095.0,0.149041]
[1729523185638,0.08156726,67109.0,67085.0,0.00038331]
[1729523185639,0.00461669,67102.0,67087.0,0.00038331]
[1729523185897,0.00461669,67102.0,67089.0,0.023]
[1729523186127,0.298058,67101.0,67089.0,0.023]
[1729523186359,0.00973658,67101.0,67090.0,0.298105]
[1729523186565,0.00973658,67101.0,67091.0,0.08]
[1729523186796,0.00973658,67101.0,67092.0,0.298095]
[1729523187009,0.15876658,67101.0,67094.0,0.149044]
[1729523187275,0.00973658,67101.0,67094.0,0.298089]
[1729523187508,0.149034,67099.0,67094.0,0.0825249]
[1729523187727,0.003,67102.0,67100.0,0.149031]
[1729523187942,0.003,67102.0,67101.0,0.149029]
[1729523188181,0.005,67108.0,67095.0,0.37237458]
[1729523188387,0.149019,67106.0,67100.0,0.14903]
[1729523188593,0.005,67101.0,67100.0,0.149031]
[1729523188812,0.005,67108.0,67100.0,0.14903]
[1729523189059,0.005,67104.0,67091.0,0.08]
[1729523189270,0.00961669,67106.0,67091.0,0.08]
[1729523189271,0.149026,67102.0,67101.0,0.001]
[1729523189500,0.149026,67102.0,67094.0,0.22341543]
[1729523189744,0.005,67103.0,67094.0,0.22341543]
[1729523189948,0.150029,67101.0,67100.0,0.001]
[1729523190183,0.005,67103.0,67096.0,0.298078]
[1729523190403,0.005,67103.0,67094.0,0.22341543]
[1729523190640,0.149033,67100.0,67094.0,0.22341543]
[1729523190852,0.14904,67096.0,67092.0,0.149049]
[1729523191067,0.298058,67101.0,67094.0,0.149042]
[1729523191288,0.149036,67098.0,67092.0,0.298098]
[1729523191552,0.149049,67092.0,67091.0,0.08]
[1729523191768,0.149049,67092.0,67079.0,0.0816]
[1729523191769,0.149075,67080.0,67079.0,0.0816]
[1729523192514,0.005,67086.0,67079.0,0.0816]
[1729523192744,0.01461669,67092.0,67080.0,0.14895915]
[1729523192967,0.01009303,67091.0,67080.0,0.14895915]
[1729523193199,0.15914603,67091.0,67087.0,0.149059]
[1729523193444,0.15914603,67091.0,67080.0,0.14895915]
[1729523193445,0.01461669,67092.0,67089.0,0.149054]
[1729523193718,0.1,67105.0,67089.0,0.149054]
[1729523193719,0.01005245,67090.0,67089.0,0.023]
[1729523193945,0.149033,67099.0,67094.0,0.298086]
[1729523194165,0.01005245,67098.0,67089.0,0.023]
[1729523194377,0.01005245,67098.0,67094.0,0.149043]
[1729523194613,0.01005245,67098.0,67092.0,0.149047]
[1729523194614,0.298076,67097.0,67092.0,0.149047]
[1729523194831,0.149042,67096.0,67092.0,0.149047]
[1729523195037,0.005,67095.0,67085.0,0.22341543]
[1729523195248,0.149051,67091.0,67085.0,0.22341543]
[1729523195483,0.149051,67091.0,67086.0,0.447184]
[1729523195717,0.01005245,67090.0,67085.0,0.22341543]
[1729523195972,0.15910545,67090.0,67086.0,0.14906]
[1729523196206,0.01005245,67089.0,67086.0,0.298122]
[1729523196432,0.01005245,67089.0,67086.0,0.149062]
[1729523196637,0.149054,67090.0,67087.0,0.14906]
[1729523196857,0.01005245,67088.0,67086.0,0.150062]
[1729523197087,0.149054,67090.0,67086.0,0.149062]
[1729523197321,0.149048,67093.0,67089.0,0.149055]
[1729523197555,0.298063,67100.0,67089.0,0.149055]
[1729523197556,0.00461669,67099.0,67089.0,0.14895915]
[1729523197771,0.01461669,67099.0,67090.0,0.298107]
[1729523197979,0.01461669,67099.0,67089.0,0.14895915]
[1729523198207,0.01461669,67099.0,67085.0,0.22341543]
[1729523198208,0.005,67093.0,67085.0,0.22341543]
[1729523198439,0.005,67093.0,67086.0,0.150061]
[1729523198690,0.005,67093.0,67085.0,0.22341543]
[1729523199236,0.005,67093.0,67080.0,0.321973]
[1729523199237,0.005,67083.0,67080.0,0.000826]
[1729523199452,0.105,67099.0,67080.0,0.000826]
[1729523199453,0.16368969,67081.0,67080.0,0.000826]
[1729523199895,0.26368969,67081.0,67080.0,0.000826]
[1729523200113,0.11461669,67081.0,67080.0,0.000826]
[1729523200542,0.005,67086.0,67080.0,0.000826]
[1729523200758,0.005,67086.0,67085.0,0.149064]
[1729523200989,0.006,67093.0,67092.0,0.149049]
[1729523201492,0.006,67093.0,67083.0,0.298138]
[1729523201714,0.005,67096.0,67090.0,0.149053]
[1729523201946,0.005,67096.0,67090.0,0.149051]
[1729523202156,0.005,67096.0,67085.0,0.298129]
[1729523202384,0.005,67096.0,67082.0,0.00038331]
[1729523202592,0.005,67097.0,67088.0,0.22341543]
[1729523202828,0.005,67097.0,67093.0,0.149046]
[1729523203032,0.001,67093.0,67092.0,0.149049]
[1729523203462,0.005,67097.0,67093.0,0.298093]
[1729523203668,0.005,67097.0,67092.0,0.149047]
[1729523203897,0.005,67097.0,67083.0,0.14895915]
[1729523203898,0.005,67097.0,67091.0,0.22341543]
[1729523204114,0.005,67097.0,67093.0,0.149045]
[1729523204326,0.005,67097.0,67092.0,0.298098]
[1729523204544,0.001,67093.0,67092.0,0.149049]
[1729523204970,0.005,67099.0,67092.0,0.03724644]
[1729523205179,0.001,67096.0,67095.0,0.447126]
[1729523205392,0.001,67096.0,67095.0,0.149042]
[1729523205600,0.005,67100.0,67097.0,0.149037]
[1729523205810,0.005,67100.0,67096.0,0.29808]
[1729523206017,0.005,67100.0,67092.0,0.001]
[1729523206245,0.005,67099.0,67091.0,0.149051]
[1729523206444,0.001,67096.0,67095.0,0.001]
[1729523206661,0.001,67096.0,67095.0,0.150042]
[1729523207097,0.001,67096.0,67095.0,0.001]
[1729523207770,0.006,67096.0,67090.0,0.01]
[1729523207986,0.154051,67091.0,67090.0,0.01]
[1729523208206,0.005,67091.0,67090.0,0.01]
[1729523208420,0.154051,67091.0,67090.0,0.01]
[1729523208629,0.01401176,67091.0,67090.0,0.01]
[1729523209314,0.005,67091.0,67090.0,0.01]
[1729523209539,0.01001176,67091.0,67090.0,0.01]
[1729523209756,0.001,67091.0,67090.0,0.159053]
[1729523210449,0.006,67091.0,67090.0,0.01]
[1729523210674,0.005,67091.0,67090.0,0.159053]
[1729523210895,0.01399601,67091.0,67090.0,0.01]
[1729523211121,0.001,67091.0,67090.0,0.160053]
[1729523211345,0.001,67091.0,67090.0,0.159053]